bitfinex/quotes_ETHUSD_20220119
["timestamp","ask_amount","ask_price","bid_price","bid_amount"]
[1642559849887,0.79128,3161.2,3161.1,4.28203758]
[1642559850189,0.49048,3161.2,3161.1,1.59481315]
[1642559852190,0.49048,3161.2,3161.1,4.28202789]
[1642559852387,0.49048,3161.2,3161.1,1.59481315]
[1642559853736,1.49048,3161.2,3161.1,1.59481315]
[1642559855037,0.49048,3161.2,3161.1,1.59481315]
[1642559855540,0.19238,3161.2,3161.1,1.59481315]
[1642559859086,1.19238,3161.2,3161.1,1.59481315]
[1642559859587,1.89158,3161.2,3161.1,1.59481315]
[1642559860733,1.58908,3161.2,3161.1,1.59481315]
[1642559860930,0.6992,3161.2,3161.1,1.59481315]
[1642559861131,0.6992,3161.2,3161.1,1.54481315]
[1642559861332,3.50032455,3161.2,3161.1,1.54481315]
[1642559861533,1.49048,3161.2,3161.1,1.54481315]
[1642559861932,3.57176779,3161.2,3161.1,1.54481315]
[1642559862332,4.57176779,3161.2,3161.1,1.54481315]
[1642559862934,6.13298401,3161.2,3161.1,1.54481315]
[1642559863135,5.43378401,3161.2,3161.1,1.54481315]
[1642559863534,6.06520973,3161.2,3161.1,1.54481315]
[1642559865384,6.36520973,3161.2,3161.1,0.19699328]
[1642559865586,6.36520973,3161.2,3160.3,6.7824]
[1642559865587,2.45,3161.1,3160.3,6.7824]
[1642559865786,2.7914701,3161.0,3160.4,2.68777384]
[1642559865988,0.79155,3160.9,3160.4,2.6917528]
[1642559866185,0.6992,3160.5,3160.4,0.00397896]
[1642559866387,0.6992,3160.5,3160.4,2.69185532]
[1642559866983,0.6992,3160.5,3160.4,2.69184648]
[1642559867183,0.6992,3160.5,3160.4,2.64184648]
[1642559867384,0.9992,3160.5,3160.0,0.1]
[1642559867586,0.455,3160.4,3160.0,0.1]
[1642559867832,0.6992,3160.2,3160.1,0.00170527]
[1642559868032,1.1542,3160.2,3160.1,0.00170527]
[1642559868639,0.6992,3160.2,3160.1,0.00170527]
[1642559869035,2.4908,3160.3,3160.1,0.00170527]
[1642559869336,1.0,3160.3,3160.1,0.00170527]
[1642559869535,1.578,3160.4,3160.1,0.00170527]
[1642559869736,0.79145,3160.3,3160.1,0.00170527]
[1642559870738,0.80422489,3160.3,3160.1,0.00170527]
[1642559872186,1.80422489,3160.3,3160.1,0.00170527]
[1642559873986,3.81413793,3160.3,3160.1,0.00170527]
[1642559874186,1.80422489,3160.3,3160.1,0.00170527]
[1642559874486,2.04799426,3160.2,3160.1,0.00170527]
[1642559874685,1.80422489,3160.3,3160.1,0.00170527]
[1642559875085,3.68749259,3160.3,3160.1,0.00170527]
[1642559875333,1.9890587,3160.2,3160.1,0.00170527]
[1642559875533,2.9890587,3160.2,3160.1,0.00170527]
[1642559875732,1.0,3160.2,3160.1,0.00170527]
[1642559875933,0.7039,3160.2,3160.1,0.00170527]
[1642559876337,2.70320069,3160.2,3160.1,0.00170527]
[1642559877934,0.7039,3160.2,3160.1,0.00170527]
[1642559878333,2.71037985,3160.2,3160.1,0.00170527]
[1642559878737,0.7039,3160.2,3160.1,0.00170527]
[1642559878995,1.0039,3160.2,3160.1,0.00170527]
[1642559879386,2.69972172,3160.2,3160.1,0.00170527]
[1642559880389,2.99972172,3160.2,3160.1,0.00170527]
[1642559880590,3.69892172,3160.2,3160.1,0.00170527]
[1642559881189,3.38902172,3160.2,3160.1,0.00170527]
[1642559881389,3.68902172,3160.2,3160.1,0.00170527]
[1642559883632,3.74138489,3160.1,3160.0,0.1]
[1642559883834,4.10978557,3160.1,3160.0,0.1]
[1642559884035,5.56478557,3160.1,3160.0,0.1]
[1642559884836,4.62340068,3160.1,3160.0,0.1]
[1642559885236,5.32260068,3160.1,3160.0,0.1]
[1642559885838,5.32260068,3160.1,3159.6,1.2395]
[1642559886138,3.3752433,3160.0,3159.7,0.0022737]
[1642559886337,2.44994597,3159.9,3159.7,0.0022737]
[1642559886581,2.14704597,3159.9,3159.6,0.00284212]
[1642559886986,2.14704597,3159.9,3159.3,0.00454739]
[1642559887181,2.25,3159.8,3159.1,5.03256982]
[1642559887383,0.79174,3159.6,3159.2,2.68867894]
[1642559887781,0.00170527,3159.5,3159.2,2.68867894]
[1642559888080,1.58348,3159.7,3159.2,2.68867894]
[1642559888081,0.00113685,3159.4,3159.2,2.68867894]
[1642559888480,0.0022737,3159.6,3159.2,2.68867894]
[1642559888882,0.00170527,3159.5,3159.2,2.68867894]
[1642559889288,0.00113685,3159.4,3159.2,2.68867894]
[1642559889687,0.29847156,3159.3,3159.2,2.68867894]
[1642559891632,0.00877156,3159.3,3159.2,2.68867894]
[1642559892631,0.00877156,3159.3,3159.2,2.53867894]
[1642559896289,2.00877156,3159.3,3159.2,2.53867894]
[1642559896489,2.00877156,3159.3,3159.1,0.03186982]
[1642559896490,0.6992,3159.2,3159.1,0.03186982]
[1642559896690,0.8557,3159.2,3159.1,0.03186982]
[1642559898735,2.8557,3159.2,3158.2,6.77654435]
[1642559898939,2.8557,3159.2,3157.5,1.60754435]
[1642559898940,19.27215,3159.0,3157.5,1.60754435]
[1642559899140,19.27215,3159.0,3158.3,0.00511581]
[1642559899141,0.79224,3158.6,3158.3,0.00511581]
[1642559899341,3.0,3158.4,3158.3,0.00511581]
[1642559899545,0.7920964,3158.3,3157.5,0.00966319]
[1642559899742,0.7920964,3158.3,3157.1,1.2399]
[1642559899743,0.4,3157.5,3157.1,1.60754435]
[1642559899942,0.4,3157.5,3157.0,2.5455392]
[1642559899943,0.79244,3157.3,3157.0,2.3455392]
[1642559900145,0.4,3157.1,3157.0,3.70149271]
[1642559900342,0.4,3157.1,3157.0,2.3455392]
[1642559900546,0.4,3157.1,3157.0,4.34838132]
[1642559900741,0.455,3157.2,3157.0,4.34838132]
[1642559900742,0.855,3157.2,3157.0,2.34838132]
[1642559900943,0.455,3157.2,3157.0,0.91747132]
[1642559901145,1.578,3157.3,3157.1,0.0022737]
[1642559901607,0.455,3157.2,3157.1,0.0022737]
[1642559901795,0.1626,3157.2,3157.1,0.0022737]
[1642559902595,3.4,3157.1,3157.0,0.8169029]
[1642559902794,0.9550114,3157.2,3157.0,0.8169029]
[1642559902995,0.1626,3157.2,3157.0,0.8169029]
[1642559903198,1.1626,3157.2,3157.0,0.8169029]
[1642559903396,1.1626,3157.2,3156.5,0.8515319]
[1642559903596,0.1626,3157.2,3156.5,0.8515319]
[1642559903796,2.3865819,3157.2,3156.6,0.00284212]
[1642559904201,0.4,3156.8,3156.6,0.00284212]
[1642559904401,1.24751,3156.7,3156.4,0.00397896]
[1642559905638,0.33422546,3156.6,3156.4,0.00397896]
[1642559905840,0.79251,3156.7,3156.6,0.66845092]
[1642559906041,1.24751,3156.7,3156.6,0.66845092]
[1642559906842,0.95221,3156.7,3156.6,0.66845092]
[1642559907645,0.455,3156.7,3156.6,0.66845092]
[1642559907844,0.4,3156.8,3156.6,0.66845092]
[1642559908247,0.455,3157.2,3156.7,0.00227369]
[1642559908983,0.7923,3157.1,3156.7,0.00227369]
[1642559909188,0.7923,3157.1,3157.0,1.34417541]
[1642559909788,1.2473,3157.1,3157.0,1.34417541]
[1642559911090,1.53003396,3157.1,3157.0,1.34417541]
[1642559911891,1.23803396,3157.1,3157.0,1.34417541]
[1642559912746,1.23803396,3157.1,3157.0,4.03467442]
[1642559913134,0.73773396,3157.1,3157.0,4.03467442]
[1642559913435,1.578,3157.3,3157.0,4.03467442]
[1642559913635,0.4,3157.6,3157.1,2.69049901]
[1642559913837,0.4,3157.6,3157.2,2.09860325]
[1642559914041,0.0022737,3157.5,3157.3,3.96243769]
[1642559914239,0.455,3158.3,3157.5,5.7545474]
[1642559914438,0.455,3158.3,3157.6,6.17056779]
[1642559914640,0.00397896,3158.2,3157.7,2.69049901]
[1642559914840,0.00397896,3158.2,3157.8,2.02720252]
[1642559915043,0.455,3158.3,3157.9,2.69049901]
[1642559915044,0.00341054,3158.1,3157.9,2.69049901]
[1642559915240,0.00341054,3158.1,3158.0,6.64518569]
[1642559915441,0.4,3158.6,3158.0,9.3356847]
[1642559915640,0.4,3158.6,3158.5,1.30796492]
[1642559915839,0.4,3158.6,3158.5,1.2589712]
[1642559916040,0.755,3158.7,3158.5,1.2589712]
[1642559916486,0.4,3158.6,3158.5,1.2589712]
[1642559916985,0.1097,3158.6,3158.5,2.5746697]
[1642559917487,0.455,3158.9,3158.5,4.33884377]
[1642559917792,0.455,3158.9,3158.5,2.5746697]
[1642559917793,0.0073895,3158.8,3158.5,2.5746697]
[1642559918187,0.00682108,3158.7,3158.6,2.68939664]
[1642559918788,0.00682108,3158.7,3158.5,4.30050584]
[1642559918987,0.00682108,3158.7,3158.5,2.5746697]
[1642559919191,0.1096,3159.1,3158.6,9.95656293]
[1642559919391,0.1096,3159.1,3158.5,2.5746697]
[1642559919592,0.00852635,3159.0,3158.6,2.68937629]
[1642559919992,0.00795792,3158.9,3158.6,2.68937629]
[1642559920436,0.0073895,3158.8,3158.5,2.5746697]
[1642559920833,0.00682108,3158.7,3158.6,6.73939262]
[1642559921033,0.00682108,3158.7,3158.6,8.61919718]
[1642559921437,0.00682108,3158.7,3158.6,4.56919718]
[1642559922036,3.16139264,3159.3,3158.7,3.8]
[1642559922237,3.16139264,3159.3,3159.2,1.55113822]
[1642559922636,1.86139264,3159.3,3159.2,1.55113822]
[1642559923136,0.455,3159.3,3159.2,1.55113822]
[1642559923986,0.405,3159.3,3159.2,1.55113822]
[1642559924792,1.19674,3159.3,3159.2,1.55113822]
[1642559925292,1.19674,3159.3,3158.4,1.1428]
[1642559925496,1.19674,3159.3,3158.5,2.68929856]
[1642559925692,0.79185,3159.0,3158.5,2.69043541]
[1642559925892,0.79185,3159.0,3158.6,1.09751137]
[1642559926092,0.79185,3159.0,3158.7,2.68929856]
[1642559926093,0.00113684,3158.9,3158.7,2.68929856]
[1642559926894,0.00113684,3158.9,3158.8,4.34248943]
[1642559927193,0.50028684,3159.0,3158.8,1.34248943]
[1642559927593,0.79179,3159.1,3158.8,1.34248943]
[1642559928038,0.79179,3159.1,3158.6,1.09751137]
[1642559928039,0.79292685,3159.1,3158.6,1.09751137]
[1642559928434,1.09292685,3159.1,3158.7,0.00113685]
[1642559929045,2.09292685,3159.1,3158.7,1.47459649]
[1642559929238,0.79292685,3159.1,3158.7,1.47459649]
[1642559929639,1.578,3159.0,3158.7,1.47459649]
[1642559929841,1.578,3159.0,3158.8,1.72654867]
[1642559930039,1.578,3159.0,3158.7,1.47459649]
[1642559932183,1.2834,3159.0,3158.7,1.47459649]
[1642559932585,1.2834,3159.0,3158.8,2.68928825]
[1642559937038,2.07522,3159.0,3158.8,2.68928825]
[1642559937236,1.78262,3159.0,3158.7,1.47459649]
[1642559937737,2.25652663,3159.0,3158.8,2.68932543]
[1642559937937,1.46470663,3159.0,3158.7,1.47459649]
[1642559938841,2.25651663,3159.0,3158.7,1.47459649]
[1642559940289,2.25651663,3159.0,3158.7,0.00113685]
[1642559940691,2.25651663,3159.0,3158.2,0.00397896]
[1642559941691,0.7919472,3158.9,3158.2,0.00397896]
[1642559941892,0.79195,3158.7,3158.2,0.00397896]
[1642559942295,0.49955,3158.7,3158.2,0.00397896]
[1642559943450,0.49955,3158.7,3158.1,0.00454738]
[1642559944350,2.0835726,3158.7,3158.1,0.00454738]
[1642559944549,0.79202,3158.5,3158.1,0.00454738]
[1642559945049,0.79202,3158.5,3158.0,0.00511581]
[1642559945250,0.79202,3158.5,3158.1,1.37316103]
[1642559945450,1.5840555,3158.5,3158.1,1.37316103]
[1642559945651,1.5840555,3158.5,3158.2,0.00397896]
[1642559946252,0.79202,3158.5,3158.2,0.00397896]
[1642559947288,0.49952,3158.5,3158.2,0.00397896]
[1642559948891,1.78269,3158.7,3158.3,1.5215016]
[1642559949096,0.9908,3158.7,3158.3,1.5215016]
[1642559949294,0.9908,3158.7,3158.6,1.11740306]
[1642559949696,0.9908,3158.7,3158.6,1.11910833]
[1642559952438,0.3588566,3158.8,3158.6,1.11910833]
[1642559952837,0.3588566,3158.8,3158.7,2.55113684]
[1642559953041,0.3588566,3158.8,3158.7,0.00113684]
[1642559955491,0.6588566,3158.8,3158.7,0.00113684]
[1642559957093,0.79201,3158.4,3158.0,0.00511581]
[1642559957394,0.49511,3158.4,3158.0,0.00511581]
[1642559957835,0.49511,3158.4,3158.2,1.16267415]
[1642559958035,0.49511,3158.4,3158.3,2.68950155]
[1642559958237,0.49511,3158.4,3158.3,2.69291209]
[1642559959041,0.49511,3158.4,3158.3,0.00341054]
[1642559959239,0.49511,3158.4,3158.3,2.69291209]
[1642559959439,0.49511,3158.4,3158.1,0.00454738]
[1642559959640,0.49511,3158.4,3158.3,0.00341054]
[1642559959838,0.49511,3158.4,3158.1,0.00454738]
[1642559960039,0.49511,3158.4,3158.3,0.00341054]
[1642559960240,0.49511,3158.4,3158.0,0.00511581]
[1642559960539,0.49511,3158.4,3158.1,2.68950155]
[1642559960939,0.49511,3158.4,3158.2,0.00397896]
[1642559961140,0.49511,3158.4,3158.3,2.68950155]
[1642559961588,1.2871483,3158.4,3158.3,2.69291209]
[1642559961785,1.5871483,3158.4,3158.3,2.69291209]
[1642559961986,2.5871483,3158.4,3158.3,0.00341054]
[1642559962387,2.5871483,3158.4,3158.1,0.00454738]
[1642559962589,2.2923483,3158.4,3158.2,2.68950155]
[1642559962987,2.2923483,3158.4,3158.3,0.00341054]
[1642559963189,1.79511,3158.4,3158.3,2.69291209]
[1642559963387,1.79511,3158.4,3158.3,0.00341054]
[1642559963787,1.79511,3158.4,3158.1,0.00454738]
[1642559963988,0.79511,3158.4,3158.2,2.68950155]
[1642559964195,1.79511,3158.4,3158.2,2.68950155]
[1642559964391,1.79511,3158.4,3158.3,0.00341054]
[1642559964592,0.79511,3158.4,3158.3,0.00341054]
[1642559964792,1.79511,3158.4,3158.3,0.00341054]
[1642559964992,1.79511,3158.4,3158.3,1.31811184]
[1642559964993,0.79511,3158.4,3158.3,1.31811184]
[1642559965242,0.49511,3158.4,3158.3,1.31811184]
[1642559965436,0.49511,3158.4,3158.3,1.32152238]
[1642559965637,0.49511,3158.4,3158.3,4.01102393]
[1642559966842,0.49511,3158.4,3158.3,2.69291209]
[1642559967140,0.49511,3158.4,3158.3,0.00341054]
[1642559967541,0.49511,3158.4,3157.9,5.43124384]
[1642559967542,0.49511,3158.4,3158.1,0.00454738]
[1642559967741,0.19681,3158.4,3158.2,2.68950155]
[1642559967944,0.19681,3158.4,3158.3,2.68950155]
[1642559968143,0.19681,3158.4,3158.3,0.00341054]
[1642559968344,0.19681,3158.4,3158.3,2.69291209]
[1642559968746,0.79192,3158.6,3158.3,0.00341054]
[1642559968986,1.7919472,3158.7,3158.3,0.00341054]
[1642559969190,2.2469472,3158.7,3158.0,2.69461736]
[1642559969394,2.2469472,3158.7,3158.1,2.69404893]
[1642559969590,1.2469472,3158.7,3158.2,2.68950155]
[1642559969790,2.2469472,3158.7,3158.2,2.69348051]
[1642559969991,2.2469472,3158.7,3158.3,2.69291209]
[1642559970191,1.2469472,3158.7,3158.4,2.68950155]
[1642559970391,0.79197,3158.6,3158.5,2.68950155]
[1642559970592,1.79197,3158.6,3158.5,2.69177524]
[1642559970791,0.79197,3158.6,3158.5,2.69177524]
[1642559970994,0.3588566,3158.8,3158.5,2.69177524]
[1642559971395,0.3588566,3158.8,3158.6,0.00170527]
[1642559972192,0.3588566,3158.8,3158.7,3.74556159]
[1642559972394,0.3588566,3158.8,3158.7,6.43506314]
[1642559972593,0.3588566,3158.8,3158.7,6.43619998]
[1642559972839,0.0664566,3158.8,3158.7,6.43619998]
[1642559973039,0.0664566,3158.8,3158.7,3.93619998]
[1642559974245,0.0664566,3158.8,3158.7,2.69063839]
[1642559974651,0.0664566,3158.8,3158.7,0.00113684]
[1642559974652,0.0164566,3158.8,3158.7,0.00113684]
[1642559975044,0.0164566,3158.8,3158.6,0.00170527]
[1642559975245,0.7919,3158.7,3158.6,0.00170527]
[1642559975545,0.7919,3158.7,3158.6,2.69120682]
[1642559977388,0.7919,3158.7,3158.6,0.00170527]
[1642559977786,0.502,3158.7,3158.6,2.15170527]
[1642559977987,0.502,3158.7,3158.6,4.84120682]
[1642559978187,0.502,3158.7,3158.6,2.69120682]
[1642559978388,0.502,3158.7,3158.6,0.00170527]
[1642559979591,0.0164566,3158.8,3158.6,0.00170527]
[1642559981540,0.0164566,3158.8,3158.6,1.11225894]
[1642559981739,0.0164566,3158.8,3158.7,6.73950155]
[1642559981939,0.0164566,3158.8,3158.7,6.74063839]
[1642559983040,0.19176323,3159.0,3158.9,2.45158179]
[1642559983242,0.19176323,3159.0,3158.9,5.14108334]
[1642559984093,1.79167,3159.5,3158.9,5.14108334]
[1642559984293,1.79167,3159.5,3159.0,2.68950155]
[1642559984494,0.00284212,3159.4,3159.0,2.68950155]
[1642559984897,0.0022737,3159.3,3159.0,2.68950155]
[1642559985293,0.00170527,3159.2,3159.0,2.68950155]
[1642559985695,0.00113685,3159.1,3159.0,7.43950155]
[1642559986396,0.00113685,3159.1,3159.0,8.55444075]
[1642559986595,0.00113685,3159.1,3159.0,7.43950155]
[1642559986795,0.00113685,3159.1,3159.0,8.55650591]
[1642559987296,0.00113685,3159.1,3159.0,2.68950155]
[1642559987844,0.00113685,3159.1,3159.0,4.98950155]
[1642559988044,0.79166,3159.6,3159.5,1.39787613]
[1642559988045,0.49999685,3159.6,3159.5,1.39787613]
[1642559988246,0.49999685,3159.6,3159.5,4.08737768]
[1642559988944,0.44999685,3159.6,3159.5,4.08737768]
[1642559991152,0.44999685,3159.6,3159.5,2.68950155]
[1642559991352,2.44999685,3159.6,3159.5,2.68950155]
[1642559991592,2.44999685,3159.6,3158.7,1.60868119]
[1642559991593,1.74999685,3159.6,3159.1,2.68950155]
[1642559991792,0.7918,3159.4,3159.2,2.68950155]
[1642559991993,0.7918,3159.4,3159.3,2.68950155]
[1642559992193,0.7918,3159.4,3158.8,1.23857893]
[1642559992395,1.58529527,3159.4,3158.9,2.68950155]
[1642559992697,1.58529527,3159.4,3159.0,1.34498916]
[1642559992698,0.00113685,3159.3,3159.0,1.34498916]
[1642559992893,0.79179,3159.2,3159.1,2.68950155]
[1642559993096,0.00113685,3159.3,3159.1,4.98950155]
[1642559993297,0.00113685,3159.3,3159.2,4.93950155]
[1642559993497,0.00113685,3159.3,3159.2,2.68950155]
[1642559993897,0.00113685,3159.3,3159.2,5.68950155]
[1642559998141,1.5719064,3159.7,3159.5,1.22262403]
[1642559998540,0.00170527,3159.6,3159.5,1.22262403]
[1642559998741,0.00170527,3159.6,3159.5,3.91155984]
[1642559998992,0.00170527,3159.6,3159.5,2.68893581]
[1642559999496,0.00170527,3159.6,3159.4,2.68893581]
[1642559999898,0.00113684,3159.5,3159.4,2.68893581]
[1642560000299,0.00113684,3159.5,3159.4,4.19031028]
[1642560002302,0.00113684,3159.5,3159.4,2.68893581]
[1642560003142,1.65049275,3159.6,3159.4,2.68893581]
[1642560003738,2.08114684,3159.5,3159.4,5.88893581]
[1642560004546,1.28943684,3159.5,3159.4,5.88893581]
[1642560008304,0.06795591,3159.6,3159.4,3.2]
[1642560010942,0.06795591,3159.6,3159.5,6.96089148]
[1642560011139,0.06795591,3159.6,3159.5,6.97504799]
[1642560011341,0.06795591,3159.6,3159.5,5.75]
[1642560012141,0.06795591,3159.6,3159.5,8.40762579]
[1642560012343,0.06795591,3159.6,3159.5,6.94961579]
[1642560012639,0.06795591,3159.6,3159.5,5.75]
[1642560013241,0.46648729,3160.1,3160.0,1.30111132]
[1642560013242,0.2436432,3160.1,3160.0,1.30111132]
[1642560014292,0.2436432,3160.1,3159.5,1.1324]
[1642560014494,0.2436432,3160.1,3159.5,1.4324]
[1642560014694,0.00284212,3160.0,3159.5,1.1324]
[1642560015096,0.0022737,3159.9,3159.5,1.29041]
[1642560015495,0.00170528,3159.8,3159.7,0.3]
[1642560015696,0.00170528,3159.8,3159.7,7.94434644]
[1642560016295,0.00170528,3159.8,3159.7,8.10235644]
[1642560016495,0.00170528,3159.8,3159.7,6.20801]
[1642560016695,0.00170528,3159.8,3159.7,7.64715709]
[1642560016895,0.00170528,3159.8,3159.7,7.34715709]
[1642560017947,0.00170528,3159.8,3159.7,7.18914709]
[1642560018149,0.00170528,3159.8,3159.7,1.43914709]
[1642560018349,0.49761528,3160.1,3159.8,3.4]
[1642560018753,0.00113684,3160.0,3159.8,3.4]
[1642560020555,0.00113684,3160.0,3159.9,7.60085456]
[1642560020755,0.00113684,3160.0,3159.9,8.05886456]
[1642560021358,0.00113684,3160.0,3159.9,7.90085456]
[1642560021592,1.26676313,3160.6,3159.9,7.90085456]
[1642560021793,0.47536313,3160.6,3160.0,6.5412504]
[1642560021992,0.00113685,3160.2,3160.1,2.3]
[1642560022193,0.00113685,3160.2,3160.1,3.5516]
[1642560022391,0.00625266,3161.1,3160.1,11.18396]
[1642560022591,0.00625266,3161.1,3160.4,1.10050749]
[1642560022791,1.57687836,3161.3,3160.5,2.0]
[1642560022792,0.00568424,3161.0,3160.5,2.0]
[1642560022992,0.00568424,3161.0,3160.7,1.51130546]
[1642560023191,0.00511581,3160.9,3160.7,1.51130546]
[1642560023393,1.28969417,3161.3,3160.8,5.75]
[1642560023791,0.00170527,3161.2,3160.8,6.05]
[1642560023995,0.00170527,3161.2,3161.1,3.79256785]
[1642560024194,1.28969417,3161.3,3161.1,3.04554712]
[1642560024394,1.28969417,3161.3,3161.2,3.18239931]
[1642560024795,1.29196787,3161.3,3161.2,3.18239931]
[1642560025939,1.29196787,3161.3,3161.2,1.78644013]
[1642560026742,1.29196787,3161.3,3161.2,7.75]
[1642560026947,1.29196787,3161.3,3161.2,10.43733452]
[1642560027143,1.29196787,3161.3,3161.2,10.59534452]
[1642560027343,1.29196787,3161.3,3161.2,11.89534452]
[1642560027743,0.0022737,3161.3,3161.2,11.89534452]
[1642560028043,0.0022737,3161.3,3161.2,14.39638135]
[1642560028443,0.9382737,3162.6,3161.3,5.75]
[1642560028743,0.79094,3162.4,3161.6,0.79094]
[1642560028991,0.79094,3162.4,3161.7,2.33160112]
[1642560029199,0.00568423,3162.3,3161.7,2.33160112]
[1642560029596,0.00511581,3162.2,3162.1,5.09584774]
[1642560029899,0.00511581,3162.2,3162.1,7.32912122]
[1642560030096,0.00511581,3162.2,3162.1,3.85]
[1642560030294,0.00511581,3162.2,3162.1,6.35]
[1642560030495,0.00511581,3162.2,3162.1,4.15]
[1642560030696,0.00511581,3162.2,3162.0,0.79085]
[1642560030895,0.00511581,3162.2,3161.9,0.13819997]
[1642560031096,0.00454739,3162.1,3161.9,0.13819997]
[1642560031497,0.00397896,3162.0,3161.9,0.13819997]
[1642560032196,0.00397896,3162.0,3161.9,3.43819997]
[1642560032497,0.00397896,3162.0,3161.9,5.81115461]
[1642560032747,0.00397896,3162.0,3161.9,4.89620997]
[1642560033540,1.29321228,3162.7,3161.9,4.89620997]
[1642560034044,0.00341054,3162.6,3161.9,4.89620997]
[1642560034444,0.00284212,3162.5,3162.0,0.79082]
[1642560034645,0.00284212,3162.5,3162.1,1.49797053]
[1642560034843,1.27112068,3163.0,3162.1,1.49797053]
[1642560034844,0.0022737,3162.4,3162.1,0.75801]
[1642560035246,1.27112068,3163.0,3162.1,3.64914155]
[1642560035247,0.00170527,3162.3,3162.1,3.64914155]
[1642560035645,0.00113685,3162.2,3162.1,2.24102497]
[1642560036046,0.00113685,3162.2,3162.1,3.70176544]
[1642560036245,0.00113685,3162.2,3162.1,9.00176544]
[1642560037393,0.00113685,3162.2,3162.1,5.44102497]
[1642560038593,0.79081,3163.0,3162.2,5.75]
[1642560038594,0.49964685,3163.0,3162.2,5.75]
[1642560038793,2.04947026,3163.1,3162.4,0.79077]
[1642560038995,0.00397896,3162.9,3162.5,0.3]
[1642560039400,0.00341054,3162.8,3162.5,0.3]
[1642560039797,0.00284212,3162.7,3162.5,1.49318343]
[1642560040243,0.00227369,3162.6,3162.5,1.49318343]
[1642560041239,0.00227369,3162.6,3162.5,4.84318343]
[1642560042241,0.00227369,3162.6,3162.5,5.30119343]
[1642560042642,0.00227369,3162.6,3162.5,6.30119343]
[1642560043042,0.00227369,3162.6,3162.5,8.70119343]
[1642560043242,0.00227369,3162.6,3162.5,7.54318343]
[1642560043645,0.79066,3163.6,3162.6,5.75]
[1642560043846,0.79066,3163.6,3162.8,0.79069]
[1642560044105,0.79634424,3163.6,3162.8,1.09069]
[1642560045005,1.79634424,3163.6,3162.8,1.09069]
[1642560045807,1.79634424,3163.6,3162.8,2.56268112]
[1642560046606,1.79634424,3163.6,3162.8,1.09069]
[1642560048143,1.79634424,3163.6,3162.8,4.29069]
[1642560048743,1.50124424,3163.6,3162.8,4.29069]
[1642560049948,0.50124424,3163.6,3163.0,1.46422726]
[1642560050147,0.50124424,3163.6,3163.1,1.78122109]
[1642560051148,0.50124424,3163.6,3163.0,2.55490726]
[1642560053903,0.20274424,3163.6,3163.0,2.55490726]
[1642560054703,0.20274424,3163.6,3163.1,1.7030825]
[1642560056550,0.20274424,3163.6,3163.0,2.55490726]
[1642560058993,1.49125424,3163.7,3163.1,3.35]
[1642560059199,1.49125424,3163.7,3163.1,3.35284212]
[1642560059498,1.49125424,3163.7,3163.1,0.00284212]
[1642560059700,0.79066,3163.6,3163.1,0.00284212]
[1642560061704,0.79086,3163.2,3163.1,0.00284212]
[1642560062102,0.79086,3163.2,3162.9,0.00397897]
[1642560062103,1.79086,3163.2,3162.9,0.00397897]
[1642560062303,1.79086,3163.2,3162.0,1.708434]
[1642560062304,0.15755,3163.0,3162.0,1.708434]
[1642560062504,2.17033811,3163.0,3162.0,1.708434]
[1642560062761,0.455,3162.9,3162.1,0.00454738]
[1642560063147,0.79101,3162.8,3162.1,0.00454738]
[1642560063348,0.455,3162.7,3162.1,0.00454738]
[1642560063552,0.61255,3162.7,3162.1,0.00454738]
[1642560063751,1.40367,3162.7,3162.1,0.00454738]
[1642560064152,2.10347,3162.7,3162.1,0.00454738]
[1642560064352,1.58418351,3162.6,3162.1,0.00454738]
[1642560064552,0.455,3162.5,3162.1,0.00454738]
[1642560065753,0.79111,3162.4,3162.1,0.00454738]
[1642560065954,1.58438431,3162.2,3162.1,0.00454738]
[1642560066154,2.03938431,3162.2,3162.1,0.00454738]
[1642560066355,0.455,3162.2,3162.1,0.00454738]
[1642560067701,1.24605,3162.2,3162.1,0.00454738]
[1642560068401,1.24605,3162.2,3162.1,3.50454738]
[1642560068803,1.24605,3162.2,3162.1,3.20454738]
[1642560069002,1.24605,3162.2,3162.1,3.50454738]
[1642560069203,0.95365,3162.2,3162.1,3.50454738]
[1642560072159,0.95365,3162.2,3162.1,3.20454738]
[1642560073163,1.95365,3162.2,3162.1,3.20454738]
[1642560073358,0.95365,3162.2,3162.1,3.20454738]
[1642560073558,1.95365,3162.2,3162.1,3.20454738]
[1642560074201,1.66285,3162.2,3162.1,3.20454738]
[1642560075203,0.66285,3162.2,3162.1,3.20454738]
[1642560075403,1.66285,3162.2,3162.1,3.20454738]
[1642560076005,0.66285,3162.2,3162.1,3.20454738]
[1642560076204,1.66285,3162.2,3162.1,3.20454738]
[1642560077006,0.66285,3162.2,3162.1,3.20454738]
[1642560079248,0.37265,3162.2,3162.1,3.20454738]
[1642560080249,0.82765,3162.2,3162.1,3.20454738]
[1642560082705,0.82765,3162.2,3162.1,1.62001244]
[1642560083907,0.9852,3162.2,3162.1,0.03542728]
[1642560084106,1.82765,3162.2,3162.1,0.03542728]
[1642560084305,1.53465,3162.2,3162.1,0.03542728]
[1642560084907,3.15,3162.1,3161.8,6.07647612]
[1642560085107,2.24627,3162.0,3161.8,6.07647612]
[1642560085344,2.24627,3162.0,3161.9,0.00113685]
[1642560085844,2.24627,3162.0,3161.8,4.49302781]
[1642560086448,2.24627,3162.0,3161.8,5.28411781]
[1642560086944,1.58453494,3161.9,3161.8,5.28411781]
[1642560087544,1.58453494,3161.9,3161.8,5.58411781]
[1642560089299,1.58453494,3161.9,3161.8,7.69997338]
[1642560089496,1.28403494,3161.9,3161.8,10.38657965]
[1642560090198,1.28403494,3161.9,3161.8,10.38660814]
[1642560090599,1.28403494,3161.9,3161.8,4.49302781]
[1642560091405,2.86647494,3161.9,3161.8,4.49302781]
[1642560091600,3.86647494,3161.9,3161.8,4.49302781]
[1642560092399,4.02402494,3161.9,3161.8,4.49302781]
[1642560092847,41.02170907,3161.8,3161.1,0.12667]
[1642560093050,2.0,3161.7,3161.1,0.12667]
[1642560093247,0.94895,3161.6,3161.2,0.00397897]
[1642560093446,0.455,3161.5,3161.2,0.00397897]
[1642560093647,5.15,3161.4,3161.1,0.12667]
[1642560093846,0.455,3161.3,3161.1,0.12667]
[1642560094052,1.455,3161.3,3161.1,0.12667]
[1642560094250,2.15755,3161.2,3161.1,0.12667]
[1642560094550,41.0,3161.1,3160.1,1.13172806]
[1642560094749,41.0,3161.1,3160.2,2.68781759]
[1642560094750,2.06009494,3161.0,3160.2,2.68781759]
[1642560094952,2.06009494,3161.0,3160.2,3.55568423]
[1642560094953,0.35251238,3160.3,3160.2,3.55568423]